Cogmind - Beta 13 @@@ ROGUE MODE // 2024.04.10 @ 18:38:28 Player: Vriska Result: Destroyed by P-60 Hacker with Shock Rifle Performance ------------- Evolutions (1) 500 Regions Visited (5) 1000 Robots Destroyed (64) 320 Value Destroyed (1559) 1559 Prototype IDs (3) 60 Alien Tech Used (0) 0 Bonus (300) 300 TOTAL SCORE: 3739 Bonus ------- Aligned with FarCom 300 Cogmind --------- Core Integrity 0/400 Matter 280/300 Energy 100/100 System Corruption 1% Temperature Cool (0) Movement Core (100) Ox1 Location -9/Exiles Parts ------- > --- POWER (1) -------- (None) > --- PROPULSION (3) --- (None) > --- UTILITY (3) ------ Small Storage Unit Improved Targeting Computer Hacking Suite > --- WEAPON (2) ------- (None) > --- INVENTORY (8) ---- Light Treads Modified TNC Medium Armor Plating Medium Armor Plating Advanced Beam Cannon Heavy Explosive Trap Heavy Explosive Trap Peak State ------------ > --- POWER ------------ Light Ion Engine > --- PROPULSION ------- Light Treads Light Treads Light Treads > --- UTILITY ---------- Small Storage Unit Machine Analyzer Hacking Suite > --- WEAPON ----------- Gatling Laser Flak Gun > --- INVENTORY -------- Medium Armor Plating Advanced Beam Cannon Advanced Beam Cannon Advanced Beam Cannon Improved Assault Rifle Heavy Explosive Trap Heavy Explosive Trap Heavy Explosive Trap [Rating: 20] Favorites ----------- Power Ion Engine Engine Ion Engine Propulsion Light Treads Treads Light Treads Leg Aluminum Leg Utility Small Storage Unit Storage Small Storage Unit Processor Signal Interpreter Hackware Hacking Suite Weapon Improved Medium Laser Energy Gun Improved Medium Laser Energy Cannon Advanced Beam Cannon Ballistic Gun Improved Assault Rifle Launcher Grenade Launcher Build | -11 -10 -10 -9 -9 -9 ------- Run | Yrd Mat Min Mat Min Exi Slots Evolved 2 | . . . 2 . . Power . | . . . . . . Propulsion 1 | . . . 1 . . Utility 1 | . . . 1 . . Weapon . | . . . . . . Parts Attached 35 | 6 5 1 17 5 1 Power 5 | 1 1 . 3 . . Engine 5 | 1 1 . 3 . . Core . | . . . . . . Reactor . | . . . . . . Propulsion 9 | 2 . 1 4 2 . Treads 8 | 2 . . 4 2 . Leg 1 | . . 1 . . . Wheel . | . . . . . . Hover . | . . . . . . Flight . | . . . . . . Utility 7 | 1 1 . 3 1 1 Device . | . . . . . . Storage 1 | 1 . . . . . Processor 5 | . 1 . 2 1 1 Hackware 1 | . . . 1 . . Protection . | . . . . . . Artifact . | . . . . . . Weapon 14 | 2 3 . 7 2 . Energy Gun 4 | . 2 . 1 1 . Energy Cannon 3 | . . . 3 . . Ballistic Gun 6 | 2 . . 3 1 . Ballistic Cannon . | . . . . . . Launcher 1 | . 1 . . . . Special Weapon . | . . . . . . Impact Weapon . | . . . . . . Slashing Weapon . | . . . . . . Piercing Weapon . | . . . . . . Special Melee Weapon . | . . . . . . Unidentified Prototypes 3 | . 1 . 2 . . Parts Lost 13 | . . 1 6 . 6 Power 2 | . . . 1 . 1 Propulsion 6 | . . 1 2 . 3 Utility 1 | . . . 1 . . Weapon 4 | . . . 2 . 2 Highest Loss Streak 5 | . . 1 2 . 5 To Critical Strikes . | . . . . . . Average Slot Usage (%) 94 | . 96 92 91 100 97 Engine 12 | . 14 14 10 11 9 Treads 25 | . 28 15 25 33 32 Leg 1 | . . 5 1 . . Storage 12 | . 14 14 11 11 11 Processor 12 | . 10 14 14 11 11 Hackware 4 | . . . 5 11 11 Energy Gun 14 | . 22 28 1 8 10 Energy Cannon 2 | . . . 7 2 . Ballistic Gun 7 | . 4 . 12 11 10 Naked Turns . | . . . . . . Heaviest Build 19 | 13 16 16 19 16 16 Greatest Support 60 | 40 40 40 60 60 60 Greatest Overweight (x) 3 | . . 1 3 . 2 Average Overweight (x) . | . . . . . . Largest Inventory Capacity 8 | 8 8 8 8 8 8 Average Capacity 7 | 7 8 8 8 8 8 Most Carried 8 | 5 5 8 8 8 8 Average Carried 6 | 2 3 7 7 7 7 Final Capacity 8 | 8 8 8 8 8 8 Final Carried 8 | 2 5 8 8 8 7 Class Distribution -------------------- 54% | Mutant 45% | Scavenger-Mutant Dominant Class ---------------- Mutant | -10/Materials Mutant | -10/Mines Scavenger-Mutant | -9/Materials Scavenger-Mutant | -9/Mines Scavenger-Mutant | -9/Exiles Resources | -11 -10 -10 -9 -9 -9 ----------- Run | Yrd Mat Min Mat Min Exi Matter Collected 1167 | 225 119 197 551 75 . Remotely . | . . . . . . Salvage Created 2062 | . 572 170 1171 86 63 Parts 139 | . 39 11 80 2 7 Haulers Intercepted 4 | . . . 4 . . Recyclers Shooed 2 | . . . 2 . . Parts Field Recycled . | . . . . . . Retrieved Matter . | . . . . . . Parts Self-Destructed . | . . . . . . Prevented . | . . . . . . Kills | -11 -10 -10 -9 -9 -9 ------- Run | Yrd Mat Min Mat Min Exi Combat Hostiles Destroyed 45 | . 11 8 22 2 2 Guns 40 | . 11 8 17 2 2 Cannons 5 | . . . 5 . . Classes Destroyed 11 | . 4 1 6 . . Worker 4 | . 1 1 2 . . Builder 1 | . . . 1 . . Hauler 4 | . . . 4 . . Recycler 1 | . . . 1 . . Mechanic 1 | . . . 1 . . Operator 1 | . 1 . . . . Watcher 7 | . 3 . 4 . . Swarmer 12 | . . 6 6 . . Grunt 27 | . 11 2 10 2 2 Duelist 1 | . . . 1 . . Sentry 5 | . . . 5 . . Best Kill Streak 11 | . 6 3 11 2 2 Combat Bots Only 5 | . 5 3 5 2 2 Max Kills in Single Turn 2 | . 2 2 2 1 1 Gunslinging 1 | . . 1 . . . Exploded . | . . . . . . Melee . | . . . . . . Uniques/NPCs Destroyed . | . . . . . . Combat | -11 -10 -10 -9 -9 -9 -------- Run | Yrd Mat Min Mat Min Exi Hostile Shots Fired 267 | . 34 34 105 9 85 Missed 77 | . 10 7 25 6 29 Damage Taken 2501 | . 307 280 1026 36 852 Core 545 | . 75 66 225 . 179 Absorbed by Shields . | . . . . . . Core Remaining (%) 71 | 100 . 43 . . . Volleys Fired 147 | . 32 23 79 5 8 Largest 2 | . 2 2 2 2 2 Hottest 112 | . 112 112 112 108 108 Shots Fired 280 | . 54 47 156 10 13 Gun 251 | . 54 47 127 10 13 Cannon 29 | . . . 29 . . Launcher . | . . . . . . Special . | . . . . . . Kinetic 146 | . 12 . 121 5 8 Thermal 134 | . 42 47 35 5 5 Explosive . | . . . . . . Electromagnetic . | . . . . . . Robot Hit Streak 26 | . 8 7 26 5 2 Robot Miss Streak 5 | . 2 4 4 5 4 Penetration Max . | . . . . . . Secondary Targets 12 | . 1 2 6 1 2 Max Gunslinging Chain 1 | . 1 1 1 1 1 Shots Hit Robots 192 | . 33 29 108 9 13 Core Hits 96 | . 20 10 48 6 12 Critical Kills . | . . . . . . Critical Parts Destroyed . | . . . . . . Critical Strikes 9 | . 5 4 . . . Burn 9 | . 5 4 . . . Melee Attacks . | . . . . . . Impact . | . . . . . . Slashing . | . . . . . . Piercing . | . . . . . . Sneak Attacks . | . . . . . . Combat Hostiles . | . . . . . . Follow-up Attacks . | . . . . . . Damage Inflicted 3184 | . 545 504 1827 149 159 Guns 2830 | . 545 491 1493 142 159 Cannons 330 | . . . 330 . . Explosions . | . . . . . . Melee . | . . . . . . Ramming 24 | . . 13 4 7 . Kinetic 1672 | . 117 . 1428 44 83 Thermal 1488 | . 428 491 395 98 76 Explosive . | . . . . . . Electromagnetic . | . . . . . . Impact . | . . . . . . Slashing . | . . . . . . Piercing . | . . . . . . Highest Corruption 2 | . 2 2 . . 1 Average Corruption 1 | . 2 2 . . 1 Corruption Purged . | . . . . . . Corruption Blocked . | . . . . . . Effects 10 | . 1 9 . . . Message Errors 4 | . 1 3 . . . Matter Fused 1 | . . 1 . . . Heat Flow Errors 2 | . . 2 . . . Energy Discharges 1 | . . 1 . . . Data Loss (minor) 1 | . . 1 . . . Misfires 1 | . . 1 . . . Overload Shots . | . . . . . . Overflow Damage 25 | . . . 25 . . Projectiles 25 | . . . 25 . . Explosions . | . . . . . . Melee . | . . . . . . Knockbacks . | . . . . . . Impact . | . . . . . . Kinetic . | . . . . . . Secondary . | . . . . . . Self-Inflicted Damage . | . . . . . . Shots . | . . . . . . Rammed 4 | . . 1 2 1 . Targets Rammed 6 | . . 3 2 1 . Kicked 1 | . . 1 . . . Crushed 1 | . . 1 . . . Highest Temperature 605 | . 417 605 162 193 109 Average Temperature 155 | . 142 294 52 107 52 Received Heat Transfer 669 | . 171 87 366 21 24 Effects 20 | . . 20 . . . Shutdowns 6 | . . 6 . . . Energy Bleed 2 | . . 2 . . . Interference 2 | . . 2 . . . Matter Decay 5 | . . 5 . . . Damage (minor) 1 | . . 1 . . . Damage (major) 4 | . . 4 . . . Siege Activations . | . . . . . . Robots Corrupted . | . . . . . . Combat Hostiles . | . . . . . . Parts Fried . | . . . . . . Impact Corruptions . | . . . . . . Robots Melted . | . . . . . . Combat Hostiles . | . . . . . . Parts Melted 4 | . 1 2 . 1 . Heat Transferred 3841 | . 1332 1369 740 225 175 Parts Sabotaged . | . . . . . . Parts Stolen . | . . . . . . Parts Stripped . | . . . . . . Power Chain Reactions . | . . . . . . Alert | -11 -10 -10 -9 -9 -9 ------- Run | Yrd Mat Min Mat Min Exi Peak Influence 387 | . 171 214 387 153 . Initial 88 | . . 7 24 88 . Average 124 | . 72 67 225 81 . Maximum Alert Level 1 | . . 1 1 . . Low Security (%) 71 | 100 100 87 28 100 . Level 1 28 | . . 12 71 . . Level 2 . | . . . . . . Level 3 . | . . . . . . Level 4 . | . . . . . . Level 5 . | . . . . . . High Security . | . . . . . . Max Security . | . . . . . . Squads Dispatched 5 | . 3 . 1 1 . Investigation 3 | . 2 . . 1 . Extermination . | . . . . . . Reinforcement 2 | . 1 . 1 . . Assault . | . . . . . . Garrison . | . . . . . . Intercept . | . . . . . . Searches Triggered . | . . . . . . Construction Impeded . | . . . . . . Haulers Reinforced . | . . . . . . Active Scanning Responses . | . . . . . . Cargo Convoy Interrupts . | . . . . . . Stealth | -11 -10 -10 -9 -9 -9 --------- Run | Yrd Mat Min Mat Min Exi Distress Signals 2 | . . . 2 . . Communications Jammed . | . . . . . . Distress Signals . | . . . . . . Times Spotted 65 | . 15 8 30 4 8 Peak Tracking Total 6 | . 2 3 5 2 6 Tactical Retreats 1 | . . . . . 1 Traps | -11 -10 -10 -9 -9 -9 ------- Run | Yrd Mat Min Mat Min Exi Traps Triggered 3 | . 3 . . . . Indirectly . | . . . . . . Trap Hack Attempts . | . . . . . . Triggered . | . . . . . . Disarmed . | . . . . . . Reprogrammed . | . . . . . . Reused . | . . . . . . Traps Extracted . | . . . . . . Installed 1 | . . . . . 1 Triggered . | . . . . . . Most Traps Carried 3 | . . 3 3 3 3 Machines | -11 -10 -10 -9 -9 -9 ---------- Run | Yrd Mat Min Mat Min Exi Machines Disabled 2 | . . 1 1 . . Max in Single Turn 1 | . . 1 1 . . Machines Repaired . | . . . . . . Machines Dismantled . | . . . . . . Machines Sabotaged . | . . . . . . Overloaded Fab Kills . | . . . . . . Hacking | -11 -10 -10 -9 -9 -9 --------- Run | Yrd Mat Min Mat Min Exi Machines Accessed 7 | . 4 1 1 1 . Terminals 6 | . 4 1 1 . . Fabricators . | . . . . . . Repair Stations . | . . . . . . Recycling Units . | . . . . . . Scanalyzers . | . . . . . . Garrison Access . | . . . . . . Total Hacks 11 | . 7 2 1 1 . Successful 7 | . 3 2 1 1 . Failed 4 | . 4 . . . . Catastrophic 1 | . 1 . . . . Database Lockouts . | . . . . . . Manual 1 | . . . . . 1 Terminals 10 | . 7 2 1 . . Fabricators . | . . . . . . Repair Stations . | . . . . . . Recycling Units . | . . . . . . Scanalyzers . | . . . . . . Garrison Access . | . . . . . . Terminal Hacks 7 | . 3 2 1 1 . Record 1 | . . 1 . . . Open Door 1 | . . . . 1 . Alert Level 2 | . 1 . 1 . . Dispatch Records 2 | . 1 1 . . . Maintenance Status 1 | . 1 . . . . Fabricator Hacks . | . . . . . . Repair Station Hacks . | . . . . . . Recycling Unit Hacks . | . . . . . . Scanalyzer . | . . . . . . Garrison Access Hacks . | . . . . . . Unauthorized Hacks . | . . . . . . Terminals . | . . . . . . Fabricators . | . . . . . . Repair Stations . | . . . . . . Recycling Units . | . . . . . . Scanalyzers . | . . . . . . Garrison Access . | . . . . . . Data Cores Recovered . | . . . . . . Used . | . . . . . . Hacking Detections 4 | . 3 1 . . . Full Trace Events . | . . . . . . Feedback Events . | . . . . . . Feedback Blocked . | . . . . . . Robot Schematics Acquired . | . . . . . . Robots Built . | . . . . . . Authchips . | . . . . . . Time . | . . . . . . Total Robot Build Rating . | . . . . . . Part Schematics Acquired . | . . . . . . Parts Built . | . . . . . . Authchips . | . . . . . . Time . | . . . . . . Total Part Build Rating . | . . . . . . Parts Repaired . | . . . . . . Time . | . . . . . . Parts Recycled . | . . . . . . Recycled Matter . | . . . . . . Retrieved Matter . | . . . . . . Retrieved Components . | . . . . . . Parts Scanalyzed . | . . . . . . Part Schematics Acquired . | . . . . . . Parts Damaged . | . . . . . . Bothacking | -11 -10 -10 -9 -9 -9 ------------ Run | Yrd Mat Min Mat Min Exi Used RIF Installer . | . . . . . . Robots Hacked . | . . . . . . Non-combat . | . . . . . . Combat . | . . . . . . Robot Hacks Applied . | . . . . . . Relay Couplers Released . | . . . . . . Fabnet Peak Effective % . | . . . . . . Robots Rewired . | . . . . . . Allies Hacked . | . . . . . . Hacks Repelled . | . . . . . . Allies | -11 -10 -10 -9 -9 -9 -------- Run | Yrd Mat Min Mat Min Exi Total Allies . | . . . . . . Largest Group . | . . . . . . Highest-Rated Group . | . . . . . . Highest-Rated Ally . | . . . . . . Total Orders . | . . . . . . Ally Attacks . | . . . . . . Total Damage . | . . . . . . Kills . | . . . . . . Allies Corrupted . | . . . . . . Allies Melted . | . . . . . . Intel | -11 -10 -10 -9 -9 -9 ------- Run | Yrd Mat Min Mat Min Exi Robot Analysis Total . | . . . . . . Derelict Logs Recovered 4 | . . 2 . 2 . Drone Launches . | . . . . . . Drone Recoveries . | . . . . . . Exploration | -11 -10 -10 -9 -9 -9 ------------- Run | Yrd Mat Min Mat Min Exi Turns Passed 4553 | 75 890 1079 1393 595 521 Spaces Moved 2453 | 45 484 577 689 348 310 Core 23 | 13 . . 5 . 5 Treads 2164 | 32 484 346 649 348 305 Legs 266 | . . 231 35 . . Wheels . | . . . . . . Hover . | . . . . . . Flight . | . . . . . . Fastest Speed 50 | 50 160 160 160 160 100 Average Speed 162 | 128 160 172 161 160 159 Slowest Speed 200 | 160 160 190 200 160 160 Overloaded Moves . | . . . . . . Propulsion Burnouts . | . . . . . . Robots Hopped . | . . . . . . Cave-ins Triggered . | . . . . . . Exploration Rate (%) 49 | 3 64 82 54 42 53 Regions Visited 5 Branch Regions 3 Pre-discovered Areas 3 | . . 2 . 1 . Known Exits Taken 3 | . 1 1 1 . . Unknown Exits Taken 2 | 1 . . . 1 . Scrap Searched 4 | . . 2 . 2 . Spaces Dug . | . . . . . . Terrain Destroyed . | . . . . . . Melee . | . . . . . . Projectile . | . . . . . . AOE . | . . . . . . Terrain Rammed . | . . . . . . Walls Destroyed . | . . . . . . Machines Disabled . | . . . . . . Actions | -11 -10 -10 -9 -9 -9 --------- Run | Yrd Mat Min Mat Min Exi Total 2738 | 62 548 618 811 376 323 Wait 27 | 4 10 6 2 4 1 Move 2448 | 44 483 576 688 347 310 Hop . | . . . . . . Pick Up 49 | 8 11 6 16 7 1 Fast Attach . | . . . . . . Attach 23 | 6 3 1 12 1 . Detach . | . . . . . . Swap 12 | . 2 . 5 4 1 Drop 25 | . 7 3 7 7 1 Fire 147 | . 32 23 79 5 8 Melee . | . . . . . . Ram . | . . . . . . Kick 1 | . . 1 . . . Crush 5 | . . 2 2 1 . Escape Stasis . | . . . . . . Rewire . | . . . . . . Trap 1 | . . . . . 1 Miscellaneous . | . . . . . . Route ------- -11/Scrapyard -10/Materials (discovered 3 exits: *Mat x2 / *Min) -10/Mines (discovered 2 exits: *Mat x2) -9/Materials (discovered 3 exits: [*Mat] / *Min x2) -9/Mines (discovered 2 exits: [*Mat] / *Exi) -9/Exiles History --------- Turn | Location | Event 6 | -11/Scrapyard | Discovered new exit (range 15) 76 | -11/Scrapyard | Entered Materials 316 | -10/Materials | Build established: Mutant 350 | -10/Materials | Discovered new exit (range 7) 361 | -10/Materials | Identified exit to Materials 500 | -10/Materials | Discovered exit to Materials (range 9) 936 | -10/Materials | Discovered new exit (range 10) 964 | -10/Materials | Identified exit to Mines 966 | -10/Materials | Entered Mines 1070 | -10/Mines | Learned location of Mines (-9) 1082 | -10/Mines | Found a hidden stash of uninstalled traps 1194 | -10/Mines | Received a Rocket Launcher from a helpful Derelict 1378 | -10/Mines | Discovered exit to Materials (range 5) 1517 | -10/Mines | Core integrity fell below 50% 1635 | -10/Mines | Discovered exit to Materials (range 5) 2045 | -10/Mines | Entered Materials 2045 | -9/Materials | Evolved 2 slots: Propulsion x1, Utility x1 2378 | -9/Materials | Discovered new exit (range 14) 2538 | -9/Materials | Discovered new exit (range 8) 2678 | -9/Materials | Identified exit to Mines 2722 | -9/Materials | Core integrity fell below 50% 2758 | -9/Materials | Build established: Scavenger-Mutant 3164 | -9/Materials | Discovered new exit (range 14) 3438 | -9/Materials | Entered Mines 3445 | -9/Mines | Discovered new exit (range 6) 3567 | -9/Mines | Met a Derelict shopkeep closing up shop 3648 | -9/Mines | Joined a pair of Derelicts in attacking an 0b10 outpost 3793 | -9/Mines | Learned 4 Materials zone layouts 3905 | -9/Mines | Learned location of Zion (-6) 4022 | -9/Mines | Deemed a non-threat by the Exiles lab entrance 4023 | -9/Mines | Discovered new exit (range 5) 4033 | -9/Mines | Entered Exiles 4093 | -9/Exiles | Met 8R-AWN 4123 | -9/Exiles | Met EX-HEX 4189 | -9/Exiles | Met EX-BIN 4273 | -9/Exiles | Aligned with FarCom system 4275 | -9/Exiles | Given EX-Vault access code 4323 | -9/Exiles | Opened EX-Vault 4333 | -9/Exiles | Found Prototype Processor 4366 | -9/Exiles | Warned to stay clear of 0b10 Research branches 4391 | -9/Exiles | Exiles lab attacked by MAIN.C 4498 | -9/Exiles | Lost 7 allies 4547 | -9/Exiles | Core integrity fell below 20% 4548 | -9/Exiles | Warned about trapping Exiles lab 4554 | -9/Exiles | Destroyed by P-60 Hacker with Shock Rifle Last Messages --------------- Machine disabled. Penetrated by Slug. Lgt. Ion Engine destroyed. G-34 Mercenary destroyed. Switching to secondary target: H-55 Commando. Slug penetrates Machine. Penetrated by Slug. Flak Gun destroyed. Penetrated by Slug. Lgt. Treads destroyed. Penetrated by Slug. Dropped Heavy Explosive Trap. Penetrated by Slug. Lgt. Treads destroyed. Penetrated by Slug. Installed Heavy Explosive Trap. EXILES: Huh, someone's being naughty. Penetrated by Slug. Gatling Laser destroyed. Machine disabled. Map ----- +----------------------------------------------------+ | ???????????????????????????????????##"###??# # | | ???????????????????????????????????????????# # | | ???????????????????????????????????????????# # | | ??????????????????????????????????????????## # | | ??????????????????????????????????????????#" | | ??????????????????????????????????????????#" | | ??????????????????????????????????????????#" | | ??????????????????????????????????????????#" | | ??????????????????????????????????????????#" | | ??????????????????????????????????????????#" | | ??????????????????????????????????????????## | | ?????????????????????????????? ???????????# | | ?????????????????????????????" ??????????#" | | ?????????????????????????????" ??????????#" | | ????????????????????????????? ""?????????#" | | ?????????????? ##????????????" "?????????##" # | | ????????????? #???????????# #????????##"" # | | ????????????? #####????### ###?######"" # | | ????????????" """#####X# #"###""""""" # | | ????????????" """""" " "" | | ?????????????# "" """ | | ??????????????# " " | | ????????????????# | | ??????????????????# | | ???????????????????# p | | ????????????????????# @ | | ????????????????????##" ^ | | ?????????????????????#""" "" | | ?????????????????????#" ######"" | | ????????????????????#"" ""##????##### | | ????????????????????#"" """##?????????# | | ???????????????????#""" t """##??????????? | | ???????????????????#""" ""#???????????? | | ????????????????????"" ##???????????# | | ????????????????????""" ?????????""" | | ????????????????????"" ???????"" | | ?????????????????????"" ! ????? | | ????????????????????#"""" ???? | | ?????????????????????? ????? | | ??????????????????????? ?????? " | | ????????????????????????"" ???????? ##" | | ?????????????????????????? ?????????? ???# | | ?????????????????????????????????????????????????? | | ?????????????????????????????????????????????????? | | ?????????????????????????????????????????????????? | | ?????????????????????????????????????????????????? | | ?????????????????????????????????????????????????? | | ?????????????????????????????????????????????????? | | ?????????????????????????????????????????????????? | | ?????????????????????????????????????????????????? | +----------------------------------------------------+ Best States ------------- Heat Dissipation 28 Energy Generation 12 Energy Capacity 265 Matter Stores 300 Matter Capacity 300 Sight Range 16 Terrain Scan Density 10 Evasion (%) 50 Targeting Accuracy 6 Recoil Reduction 3 Offensive Hacking 10 Item Schematics ----------------- None Robot Schematics ------------------ None Fabricated ------------ Nothing Alien Tech Used ----------------- None Achievements -------------- None Challenges ------------ None Game ------ Seed ArmageddonActiveNullifier Manual? 0 Play Time 00:35:36 Cumulative 11.9 hours Start 2024.04.10 @ 17:57:02 End 2024.04.10 @ 18:38:28 Sessions 1 Manual Loads 0 Difficulty Rogue Special Mode None Game No. 26 Rogue 26 Adventurer 0 Explorer 0 Win Type - Total 0 Types 0/0/0/0/0/0/0/0/0 Lore% 19 Gallery% 16 Achievement% 17 Wizard Run 0 Options --------- Layout 0 ASCII 0 Keyboard 0 Movement Arrows Keybinds 0 Fullscreen 1 Font 18/SmallcapsGlow Map View 76x50 Zoom Use 0% Tactical HUD 0 Map Filters NONE Filters NONE Steam 1 RUN: abe0061e-c66e-49f4-bb35-1fa6d83cf54e